[Event "World Junior U20 Open 2018"]
[Site "Gebze"]
[Date "2018.09.07"]
[Round "4.73"]
[White "Tuna, Alp"]
[Black "Huber, Martin Christian"]
[Result "0-1"]
[ECO "C00"]
[WhiteElo "2253"]
[BlackElo "2390"]
[Annotator "NA"]
[PlyCount "84"]
[EventDate "2018.09.05"]
[EventType "swiss"]
[EventCountry "TUR"]
[SourceTitle "playchess.com"]
[Source "ChessBase"]
[SourceQuality "1"]
[TimeControl "40/5400+30:1800+30"]

1. e4 {[%emt 0:00:30]} c5 {[%emt 0:00:30]} 2. Nf3 {[%emt 0:00:30]} e6 {[%emt 0:00:30]} 3. g3 {[%emt 0:00:00]} Nc6 {[%emt 0:01:00]} 4. Bg2 {[%emt 0:00:00]} Nf6 {[%emt 0:00:30]} 5. d3 {[%emt 0:00:30]} d5 {[%emt 0:04:00]} 6. Nbd2 {[%emt 0:00:30]} Be7 {[%emt 0:04:30]} 7. O-O {[%emt 0:00:00]} O-O {[%emt 0:00:30]} 8. Re1 {[%emt 0:01:30]} Re8 {[%emt 0:04:00]} 9. e5 {[%emt 0:05:30]} Nd7 {[%emt 0:00:30]} 10. Nf1 {[%emt 0:01:30]} b5 {[%emt 0:02:30]} 11. h4 {[%emt 0:00:30] C00: French: Unusual White 2nd moves} a5 {[%emt 0:00:30]} 12. N1h2 {[%emt 0:02:30]} b4 {[%emt 0:00:30]} 13. h5 {[%emt 0:09:30]} a4 {[%emt 0:03:30]} (13... h6 14. Ng4 Bf8 15. Bf4 a4 16. a3 bxa3 17. bxa3 Rb8 18. Ne3 Bb7 19. c4 dxc4 20. Nxc4 {1-0 (58) Svidler,P (2727)-Karjakin,S (2762) Baku 2015}) 14. Ng4 {[%emt 0:01:30]} Ba6 {[%emt 0:03:30]} 15. Bf4 {[%emt 0:07:30]} Nd4 $146 {[%emt 0:03:30]} ({Predecessor:} 15... Na7 16. h6 g6 17. Qc1 Rc8 18. Bg5 Nb5 19. Qf4 a3 20. b3 {½-½ (47) Demian,V-Troianescu,O Bucharest 1967}) 16. Nxd4 {[%emt 0:04:30]} cxd4 {[%emt 0:01:30]} 17. b3 {[%emt 0:35:30]} Bb5 {[%emt 0:32:30]} 18. Qd2 {[%emt 0:14:30]} Rc8 {[%emt 0:08:30]} 19. Bf3 {[%emt 0:05:30]} Rc3 {[%emt 0:18:30]} 20. Kg2 {[%emt 0:03:30]} Qc8 {[%emt 0:02:30]} 21. Bd1 {[%emt 0:10:30]} Qc5 {[%emt 0:05:30]} 22. Bg5 {[%emt 0:04:30]} Bf8 {[%emt 0:01:30]} 23. Rh1 {[%emt 0:07:53]} Ra8 {[%emt 0:04:30]} 24. Rb1 {[%emt 0:03:24]} axb3 {[%emt 0:02:30]} 25. axb3 {[%emt 0:00:05]} Ra2 {[%emt 0:00:30]} 26. Qf4 {[%emt 0:00:37]} Rcxc2 {[%emt 0:16:52]} 27. Bxc2 {[%emt 0:00:07]} Rxc2 {[%emt 0:00:09]} 28. Rbd1 {[%emt 0:10:24]} Rc3 {[%emt 0:01:46]} 29. Rh4 {[%emt 0:01:48]} Bxd3 {[%emt 0:01:44]} 30. Nh6+ {[%emt 0:05:17]} gxh6 {[%emt 0:00:31]} 31. Rxd3 {[%emt 0:00:25]} f5 {[%emt 0:06:18]} 32. exf6 {[%emt 0:01:27]} Kf7 {[%emt 0:01:20]} 33. Rxd4 {[%emt 0:00:30]} Bd6 {[%emt 0:00:47]} 34. Qd2 {[%emt 0:00:30]} hxg5 {[%emt 0:00:52]} 35. Qxg5 {[%emt 0:00:42]} Nxf6 {[%emt 0:00:00]} 36. h6 {[%emt 0:00:00]} Be7 $16 {[%emt 0:00:44]} (36... e5 $19 37. Rd1 Ke6) 37. Rxb4 {[%emt 0:00:39]} Ke8 $2 {[%emt 0:00:22]} (37... Qc6 $11 {and Black is okay.} 38. Rbd4 Qd6) 38. Qe5 {[%emt 0:00:37]} Qc6 {[%emt 0:00:31]} 39. Rb8+ {[%emt 0:00:20]} Kd7 {[%emt 0:00:13]} 40. Ra4 {[%emt 0:00:00]} d4+ {[%emt 0:00:00]} 41. Kf1 {[%emt 0:02:45]} Qh1+ {[%emt 0:01:51]} 42. Ke2 {[%emt 0:00:30]} Rc2+ {[%emt 0:03:30]} 0-1

[Event "World Junior U20 Open 2018"]
[Site "Gebze"]
[Date "2018.09.07"]
[Round "4.75"]
[White "Bashirli, Nail"]
[Black "Kwon, Sehyun"]
[Result "1-0"]
[ECO "B27"]
[WhiteElo "2354"]
[BlackElo "2129"]
[Annotator "NA"]
[PlyCount "87"]
[EventDate "2018.09.05"]
[EventType "swiss"]
[EventCountry "TUR"]
[SourceTitle "playchess.com"]
[Source "ChessBase"]
[SourceQuality "1"]
[TimeControl "40/5400+30:1800+30"]

1. e4 c5 2. Nf3 g6 3. Bc4 Bg7 4. O-O Nc6 5. c3 e6 6. d4 cxd4 7. Nxd4 a6 8. Re1 Nge7 9. Nxc6 dxc6 10. Qxd8+ Kxd8 11. a4 b6 {[%emt 0:39:30]} 12. Bf4 {[%emt 0:28:00]} c5 {[%emt 0:00:30]} 13. Nd2 {[%emt 0:03:30]} Ra7 {[%emt 0:12:30]} 14. Nf3 {[%emt 0:03:30]} Nc6 {[%emt 0:04:30]} 15. Red1+ {[%emt 0:06:30]} Bd7 {[%emt 0:04:30]} 16. Bd6 {[%emt 0:07:30]} Ke8 {[%emt 0:03:30]} 17. Rd2 {[%emt 0:18:30]} Na5 {[%emt 0:02:30]} 18. Ba2 {[%emt 0:00:30]} Bxa4 {[%emt 0:05:30]} 19. Bxe6 {[%emt 0:00:30]} Nb3 {[%emt 0:02:30]} 20. Bxb3 {[%emt 0:02:30]} Bxb3 {[%emt 0:00:30]} 21. Ne5 {[%emt 0:00:30]} Bh6 {[%emt 0:04:42]} 22. Rd3 {[%emt 0:01:30]} Bc2 {[%emt 0:01:15]} 23. Rh3 {[%emt 0:02:30]} Bg7 {[%emt 0:06:02]} 24. Rc1 {[%emt 0:07:53]} Ba4 {[%emt 0:07:24]} 25. Nc4 {[%emt 0:00:04]} Bd7 {[%emt 0:01:56]} 26. Rg3 {[%emt 0:02:00]} Be6 {[%emt 0:05:30]} 27. Nxb6 {[%emt 0:00:05]} c4 {[%emt 0:00:00]} 28. Bc5 {[%emt 0:01:44]} Be5 {[%emt 0:00:31]} 29. Rf3 {[%emt 0:05:26]} Bg4 {[%emt 0:00:38]} 30. Nxc4 {[%emt 0:00:30]} Bxf3 {[%emt 0:00:31]} 31. Bxa7 {[%emt 0:02:05]} Bf4 {[%emt 0:00:08]} 32. Ra1 {[%emt 0:01:01]} Be2 {[%emt 0:00:10]} 33. Bd4 {[%emt 0:00:00]} Rg8 {[%emt 0:00:10]} 34. Rxa6 {[%emt 0:00:00]} Kd7 {[%emt 0:00:38]} 35. Ra7+ {[%emt 0:00:50]} Ke6 {[%emt 0:00:47]} 36. Nb6 {[%emt 0:00:02]} h5 {[%emt 0:01:06]} 37. Nd5 {[%emt 0:02:07]} Bd6 {[%emt 0:00:06]} 38. b4 {[%emt 0:00:00]} f5 {[%emt 0:00:26]} 39. Nf6 {[%emt 0:00:07]} Rc8 {[%emt 0:00:20]} 40. f3 {[%emt 0:00:00]} Bb8 {[%emt 0:00:00]} 41. Ra5 {[%emt 0:02:06]} h4 {[%emt 0:03:10]} 42. Kf2 {[%emt 0:00:30]} Bd3 {[%emt 0:00:30]} 43. Ke3 {[%emt 0:00:30]} Bc4 {[%emt 0:00:30]} 44. e5 {[%emt 0:00:30]} 1-0

[Event "World Junior U20 Open 2018"]
[Site "Gebze"]
[Date "2018.09.07"]
[Round "4.76"]
[White "Pigeat, Alexandre"]
[Black "Noboa, Kevin"]
[Result "1-0"]
[ECO "E29"]
[WhiteElo "2347"]
[BlackElo "2256"]
[Annotator "NA"]
[PlyCount "97"]
[EventDate "2018.09.05"]
[EventType "swiss"]
[EventCountry "TUR"]
[SourceTitle "playchess.com"]
[Source "ChessBase"]
[SourceQuality "1"]
[TimeControl "40/5400+30:1800+30"]

1. d4 e6 2. c4 Bb4+ 3. Nc3 c5 4. a3 Bxc3+ 5. bxc3 d6 6. e3 Nc6 7. Bd3 Nf6 8. Ne2 O-O 9. Qc2 e5 10. O-O Re8 11. f3 b6 12. e4 h6 13. Be3 Na5 14. Ng3 cxd4 15. cxd4 Be6 16. d5 Bd7 17. h3 Rc8 18. Qe2 {[%emt 0:28:00]} Nb3 {[%emt 0:39:00]} 19. Rab1 {[%emt 0:00:30]} Nc5 {[%emt 0:00:30]} 20. f4 {[%emt 0:00:30]} exf4 {[%emt 0:00:30]} 21. Bxf4 {[%emt 0:00:30]} b5 {[%emt 0:11:30]} 22. Bc2 {[%emt 0:05:30]} bxc4 {[%emt 0:02:30]} 23. Qf3 {[%emt 0:03:30]} Nh7 {[%emt 0:10:30]} 24. Nh5 {[%emt 0:07:30]} Kh8 {[%emt 0:17:30]} 25. Bxd6 {[%emt 0:15:30]} Ng5 {[%emt 0:05:12]} 26. Qc3 {[%emt 0:00:30]} Rg8 {[%emt 0:03:49]} 27. Be5 {[%emt 0:04:30]} Qf8 {[%emt 0:01:02]} 28. Rbe1 {[%emt 0:07:30]} Nd3 {[%emt 0:01:21]} 29. Bxd3 {[%emt 0:02:30]} cxd3 {[%emt 0:00:30]} 30. Qxd3 {[%emt 0:00:30]} Qc5+ {[%emt 0:01:16]} 31. Bd4 {[%emt 0:00:30]} Bb5 {[%emt 0:01:05]} 32. Qe3 {[%emt 0:00:30]} Qd6 {[%emt 0:02:18]} 33. h4 {[%emt 0:07:30]} Qg6 {[%emt 0:03:40]} 34. Rf5 {[%emt 0:04:34]} Qxh5 {[%emt 0:01:35]} 35. hxg5 {[%emt 0:00:09]} Bd7 {[%emt 0:00:34]} 36. Re5 {[%emt 0:03:02]} Kh7 {[%emt 0:01:06]} 37. gxh6 {[%emt 0:00:43]} Qxh6 {[%emt 0:00:13]} 38. Qf3 {[%emt 0:00:45]} Rc1 {[%emt 0:01:03]} 39. Rh5 {[%emt 0:01:21]} Rxe1+ {[%emt 0:00:13]} 40. Kf2 {[%emt 0:00:00]} Rh1 {[%emt 0:00:00]} 41. Rxh6+ {[%emt 0:01:26]} Rxh6 {[%emt 0:01:33]} 42. Qxf7 {[%emt 0:00:30]} Be8 {[%emt 0:00:30]} 43. Qe7 {[%emt 0:00:30]} Kg6 {[%emt 0:00:30]} 44. d6 {[%emt 0:00:30]} Bf7 {[%emt 0:00:30]} 45. d7 {[%emt 0:00:30]} Rhh8 {[%emt 0:00:30]} 46. Qd6+ {[%emt 0:01:30]} Kh7 {[%emt 0:06:30]} 47. Qh2+ {[%emt 0:00:30]} Kg6 {[%emt 0:00:00]} 48. Qg3+ {[%emt 0:00:00]} Kh5 {[%emt 0:01:00]} 49. Be3 {[%emt 0:00:00]} 1-0

[Event "World Junior U20 Open 2018"]
[Site "Gebze"]
[Date "2018.09.07"]
[Round "4.77"]
[White "Hollan, Martin"]
[Black "Dionizio, Andre Filipe Nascim"]
[Result "1-0"]
[ECO "D53"]
[WhiteElo "2336"]
[BlackElo "2010"]
[Annotator "NA"]
[PlyCount "77"]
[EventDate "2018.09.05"]
[EventType "swiss"]
[EventCountry "TUR"]
[SourceTitle "playchess.com"]
[Source "ChessBase"]
[SourceQuality "1"]
[TimeControl "40/5400+30:1800+30"]

1. d4 {[%emt 0:00:30]} d5 {[%emt 0:00:30]} 2. c4 {[%emt 0:00:30]} e6 {[%emt 0:00:00]} 3. Nc3 {[%emt 0:00:30]} Nf6 {[%emt 0:00:00]} 4. Bg5 {[%emt 0:00:30]} Be7 {[%emt 0:00:30]} 5. e3 {[%emt 0:00:30]} a6 {[%emt 0:00:30]} 6. cxd5 {[%emt 0:00:00] D53: Queen's Gambit Declined: 4 Bg5 Be7: Early deviations} exd5 {[%emt 0:00:30]} 7. Bd3 {[%emt 0:00:00]} O-O {[%emt 0:00:30]} (7... c6 8. Qc2 Nbd7 9. Nf3 O-O 10. h3 Re8 11. O-O-O Nf8 12. g4 Be6 13. Kb1 Rc8 14. Rhg1 b5 15. Ne2 Ne4 16. Bxe7 Qxe7 17. Nf4 c5 18. dxc5 Rxc5 19. Qe2 Ng6 20. Nh5 Rec8 21. Nd4 Ne5 {0-1 (39) Rajkovic,D (2486)-Miladinovic,I (2571) Kragujevac 2009}) 8. Qc2 {[%emt 0:00:30]} h6 {[%emt 0:00:00]} 9. Bh4 {[%emt 0:00:30]} Nbd7 {[%emt 0:03:00]} 10. Nge2 {[%emt 0:01:30]} c5 {[%emt 0:02:30]} 11. dxc5 {[%emt 0:01:30]} Nxc5 {[%emt 0:00:30]} 12. O-O {[%emt 0:00:30]} b5 $146 {[%emt 0:08:30]} ({Predecessor:} 12... Be6 13. Rfd1 Rc8 14. Nf4 Ncd7 15. Bg3 Qb6 16. Qd2 Bb4 17. a3 Bxc3 18. bxc3 {0-1 (18) Barrish,D (1678)-Gumpo,T (1944) Gauteng 2011}) 13. Rad1 {[%emt 0:10:00]} Nxd3 {[%emt 0:13:30]} 14. Bxf6 {[%emt 0:08:30]} Bxf6 {[%emt 0:04:30]} 15. Qxd3 {[%emt 0:01:30]} Bb7 {[%emt 0:37:30]} 16. b4 {[%emt 0:41:00]} Qe7 {[%emt 0:03:30]} 17. a3 {[%emt 0:03:30]} Rfd8 {[%emt 0:00:30]} 18. Nd4 {[%emt 0:00:30]} Rac8 {[%emt 0:03:30]} 19. Nce2 {[%emt 0:01:30]} Qe4 $11 {[%emt 0:08:30]} 20. Nb3 {[%emt 0:04:30]} Qxd3 {[%emt 0:22:30]} 21. Rxd3 {[%emt 0:00:00]} Rc2 {[%emt 0:00:30]} 22. Nc5 {[%emt 0:13:00]} Bc8 {[%emt 0:00:30]} 23. Nf4 {[%emt 0:01:30]} d4 {[%emt 0:05:58]} 24. e4 {[%emt 0:03:30]} Be7 {[%emt 0:02:37]} 25. Nb3 {[%emt 0:02:30]} Bb7 {[%emt 0:02:10]} 26. f3 {[%emt 0:01:30]} g5 {[%emt 0:01:33]} 27. Nh5 {[%emt 0:01:30]} Ra2 {[%emt 0:11:01]} 28. Ra1 {[%emt 0:08:30]} Rxa1+ {[%emt 0:00:43]} 29. Nxa1 {[%emt 0:01:30]} a5 {[%emt 0:00:36]} 30. Nc2 {[%emt 0:01:55]} axb4 {[%emt 0:00:59]} 31. axb4 {[%emt 0:00:07]} Rc8 {[%emt 0:00:45]} 32. Nxd4 {[%emt 0:00:39]} Rd8 {[%emt 0:00:42]} 33. Kf2 {[%emt 0:07:51]} Bxb4 {[%emt 0:00:01]} 34. Ke2 {[%emt 0:00:38]} Ba6 {[%emt 0:00:50]} 35. Nf6+ {[%emt 0:03:18]} Kh8 {[%emt 0:00:01]} 36. Nd5 {[%emt 0:01:31]} Bc5 {[%emt 0:00:08]} 37. Nc6 {[%emt 0:01:53]} Rd6 {[%emt 0:01:11]} 38. Ncb4 {[%emt 0:00:59]} Bc8 {[%emt 0:00:20]} 39. Rc3 {[%emt 0:00:18]} 1-0

[Event "World Junior U20 Open 2018"]
[Site "Gebze"]
[Date "2018.09.07"]
[Round "4.78"]
[White "Dedebas, Emre Emin"]
[Black "Cansun, Can Alp"]
[Result "1/2-1/2"]
[ECO "E15"]
[WhiteElo "2334"]
[BlackElo "2110"]
[Annotator "NA"]
[PlyCount "85"]
[EventDate "2018.09.05"]
[EventType "swiss"]
[EventCountry "TUR"]
[SourceTitle "playchess.com"]
[Source "ChessBase"]
[SourceQuality "1"]
[TimeControl "40/5400+30:1800+30"]

1. d4 Nf6 2. Nf3 e6 3. c4 b6 4. g3 Ba6 5. Qa4 c5 6. Bg2 Bb7 7. dxc5 bxc5 8. O-O Be7 9. Nc3 O-O 10. Rd1 d6 11. Bf4 Qb6 12. Rab1 Na6 13. a3 Bc6 14. Qc2 Rfd8 15. e4 Qb7 16. Ne1 {[%emt 0:38:00]} h6 {[%emt 0:30:00]} 17. Qe2 {[%emt 0:00:30]} e5 {[%emt 0:03:30]} 18. Bc1 {[%emt 0:06:30]} Qb3 {[%emt 0:02:30]} 19. Nc2 {[%emt 0:00:30]} Rab8 {[%emt 0:06:30]} 20. Ne3 {[%emt 0:07:30]} Nc7 {[%emt 0:05:30]} 21. Rd3 {[%emt 0:06:30]} Qb7 {[%emt 0:17:30]} 22. Nf5 {[%emt 0:01:30]} Ne6 {[%emt 0:01:30]} 23. Nd5 {[%emt 0:03:30]} Bxd5 {[%emt 0:00:30]} 24. exd5 {[%emt 0:05:30]} Nd4 {[%emt 0:02:30]} 25. Nxd4 {[%emt 0:00:30]} exd4 {[%emt 0:00:30]} 26. b4 {[%emt 0:06:30]} Re8 {[%emt 0:02:30]} 27. Rdb3 {[%emt 0:01:30]} Bf8 {[%emt 0:01:30]} 28. Qd1 {[%emt 0:01:30]} Qa6 {[%emt 0:03:30]} 29. Qf1 {[%emt 0:05:46]} Qa4 {[%emt 0:03:30]} 30. Bd2 {[%emt 0:01:45]} Nd7 {[%emt 0:03:30]} 31. Qd1 {[%emt 0:04:45]} Be7 {[%emt 0:04:31]} 32. Bf1 {[%emt 0:00:28]} Qa6 {[%emt 0:02:20]} 33. Bxh6 {[%emt 0:02:12]} Ne5 {[%emt 0:02:34]} 34. Bf4 {[%emt 0:03:22]} Ng6 {[%emt 0:00:59]} 35. Bd2 {[%emt 0:00:29]} Bf6 {[%emt 0:01:42]} 36. f4 {[%emt 0:00:37]} Ne7 {[%emt 0:01:21]} 37. Bd3 {[%emt 0:04:00]} Nxd5 {[%emt 0:07:07]} 38. b5 {[%emt 0:05:25]} Qa4 {[%emt 0:00:10]} 39. Qh5 {[%emt 0:00:02]} Ne3 {[%emt 0:00:30]} 40. Qh7+ {[%emt 0:00:30]} Kf8 {[%emt 0:00:00]} 41. Bxe3 {[%emt 0:17:23]} dxe3 {[%emt 0:00:16]} 42. Be2 {[%emt 0:00:24]} Bd4 {[%emt 0:05:30]} 43. Qf5 {[%emt 0:00:42]} 1/2-1/2

[Event "World Junior U20 Open 2018"]
[Site "Gebze"]
[Date "2018.09.07"]
[Round "4.79"]
[White "Sezdbekov, Ruslan"]
[Black "Zhu, Yi"]
[Result "1-0"]
[ECO "B22"]
[WhiteElo "2160"]
[BlackElo "2335"]
[Annotator "NA"]
[PlyCount "65"]
[EventDate "2018.09.05"]
[EventType "swiss"]
[EventCountry "TUR"]
[SourceTitle "playchess.com"]
[Source "ChessBase"]
[SourceQuality "1"]
[TimeControl "40/5400+30:1800+30"]

1. e4 {[%emt 0:00:30]} c5 {[%emt 0:00:30]} 2. Nf3 {[%emt 0:00:30]} e6 {[%emt 0:00:30]} 3. c3 {[%emt 0:00:00]} Nf6 {[%emt 0:01:30]} 4. e5 {[%emt 0:01:00]} Nd5 {[%emt 0:00:30]} 5. d4 {[%emt 0:00:30]} cxd4 {[%emt 0:01:30]} 6. cxd4 {[%emt 0:00:30]} d6 {[%emt 0:00:30]} 7. exd6 {[%emt 0:01:30]} Bxd6 {[%emt 0:00:30]} 8. Nc3 {[%emt 0:00:00]} O-O {[%emt 0:01:30]} 9. Bd3 {[%emt 0:01:00]} Nf4 {[%emt 0:00:30]} 10. Bxf4 {[%emt 0:00:30]} Bxf4 {[%emt 0:00:30]} 11. O-O {[%emt 0:00:30]} Nc6 {[%emt 0:01:30]} 12. Re1 {[%emt 0:01:30]} g6 {[%emt 0:02:30]} 13. Be4 {[%emt 0:02:30]} Ne7 {[%emt 0:11:30]} 14. Qb3 {[%emt 0:12:30]} Bh6 {[%emt 0:16:30]} 15. Rad1 {[%emt 0:03:30]} Bg7 {[%emt 0:03:30]} 16. Ne5 {[%emt 0:07:30]} a6 {[%emt 0:06:30]} 17. f4 {[%emt 0:07:30]} Qc7 {[%emt 0:19:30]} 18. Kh1 {[%emt 0:07:30]} Rb8 {[%emt 0:09:30]} 19. d5 {[%emt 0:13:30]} Rd8 {[%emt 0:07:51]} 20. Bf3 {[%emt 0:09:30]} b5 {[%emt 0:03:45]} 21. Qb4 {[%emt 0:05:30]} exd5 {[%emt 0:01:43]} 22. Bxd5 {[%emt 0:04:46]} Be6 {[%emt 0:02:46]} 23. Bxe6 {[%emt 0:01:45]} fxe6 {[%emt 0:00:05]} 24. Qb3 {[%emt 0:00:42]} Rb6 {[%emt 0:00:06]} 25. Rxd8+ {[%emt 0:03:47]} Qxd8 {[%emt 0:00:02]} 26. Rd1 {[%emt 0:00:22]} Qe8 {[%emt 0:00:11]} 27. Na4 {[%emt 0:02:17]} bxa4 {[%emt 0:02:03]} 28. Qxb6 {[%emt 0:00:30]} Nd5 {[%emt 0:00:03]} 29. Qd6 {[%emt 0:01:21]} Bf8 {[%emt 0:01:47]} 30. Qxa6 {[%emt 0:01:53]} Nxf4 {[%emt 0:00:07]} 31. Nd7 {[%emt 0:01:30]} Bg7 {[%emt 0:05:52]} 32. Qxa4 {[%emt 0:00:10]} Nh5 {[%emt 0:00:04]} 33. g4 {[%emt 0:01:19]} 1-0

[Event "World Junior U20 Open 2018"]
[Site "Gebze"]
[Date "2018.09.07"]
[Round "4.80"]
[White "Akdogan, Alperen"]
[Black "Caglar, Ahmet Ata"]
[Result "1-0"]
[ECO "E92"]
[WhiteElo "2278"]
[BlackElo "2071"]
[Annotator "NA"]
[PlyCount "97"]
[EventDate "2018.09.05"]
[EventType "swiss"]
[EventCountry "TUR"]
[SourceTitle "playchess.com"]
[Source "ChessBase"]
[SourceQuality "1"]
[TimeControl "40/5400+30:1800+30"]

1. d4 {[%emt 0:00:30]} Nf6 {[%emt 0:00:30]} 2. c4 {[%emt 0:00:30]} g6 {[%emt 0:00:30]} 3. Nc3 {[%emt 0:00:30]} Bg7 {[%emt 0:00:30]} 4. e4 {[%emt 0:00:30]} d6 {[%emt 0:00:30]} 5. Nf3 {[%emt 0:00:30]} O-O {[%emt 0:00:30]} 6. h3 {[%emt 0:00:00]} Na6 {[%emt 0:00:00]} 7. Bg5 {[%emt 0:00:00]} e5 {[%emt 0:04:00]} 8. d5 {[%emt 0:00:00]} h6 {[%emt 0:01:30]} 9. Be3 {[%emt 0:00:00]} Nc5 {[%emt 0:00:30]} 10. Nd2 {[%emt 0:00:00]} a5 {[%emt 0:01:30]} 11. Be2 {[%emt 0:00:00]} Ne8 {[%emt 0:03:30]} 12. g4 {[%emt 0:03:30] E92: King's Indian: Classical: 6 Be2 e5: 7 dxe5, 7 Be3 and Petrosian System without 7...Nbd7} c6 {[%emt 0:05:30]} 13. Qc2 {[%emt 0:07:30]} Bd7 {[%emt 0:00:30]} 14. h4 {[%emt 0:02:30]} (14. O-O-O cxd5 15. Nxd5 Nc7 16. Nxc7 Qxc7 17. Nb1 Ne6 18. Nc3 Nf4 19. Nd5 Nxd5 20. cxd5 {1-0 (42) Lupulescu,C (2655)-Popovics,A (2399) Hungary 2011}) 14... a4 {[%emt 0:03:30]} 15. h5 {[%emt 0:02:30]} g5 $146 {[%emt 0:01:30]} ({Predecessor:} 15... Qa5 16. a3 f5 17. hxg6 f4 18. Bxc5 dxc5 19. f3 Rf6 20. O-O-O Rxg6 {1-0 (55) Bjelobrk,I (2392)-Brown,A (2187) Canberra 2016}) 16. Bxc5 {[%emt 0:07:30]} dxc5 {[%emt 0:00:30]} 17. Nxa4 {[%emt 0:00:30]} cxd5 {[%emt 0:00:00]} 18. Nxc5 {[%emt 0:00:30]} d4 {[%emt 0:01:00]} 19. Nd3 {[%emt 0:06:30]} Nc7 $11 {[%emt 0:04:30]} 20. O-O {[%emt 0:12:30]} Ne6 {[%emt 0:01:30]} 21. Rfc1 {[%emt 0:14:30]} Nf4 {[%emt 0:02:30]} 22. Nf1 {[%emt 0:02:30]} f5 {[%emt 0:18:30]} 23. gxf5 {[%emt 0:07:30]} g4 {[%emt 0:00:30]} 24. Ng3 {[%emt 0:11:30]} Qh4 {[%emt 0:01:30]} 25. Bf1 {[%emt 0:00:30]} Bf6 {[%emt 0:03:30]} 26. Qb3 {[%emt 0:08:31]} Bc6 {[%emt 0:04:30]} 27. Nb4 {[%emt 0:02:39]} Bg5 {[%emt 0:00:30]} 28. Nd5 {[%emt 0:03:08]} Nxh5 {[%emt 0:06:30]} 29. Nxh5 {[%emt 0:01:38]} Qxh5 {[%emt 0:00:30]} 30. Re1 {[%emt 0:05:21]} Bxd5 {[%emt 0:02:30]} 31. cxd5 {[%emt 0:00:48]} Bf4 {[%emt 0:00:30]} 32. Bg2 {[%emt 0:00:00]} Qh2+ {[%emt 0:00:30]} 33. Kf1 {[%emt 0:00:00]} h5 {[%emt 0:00:30]} 34. d6+ {[%emt 0:00:39]} Kh8 {[%emt 0:00:30]} 35. Rac1 {[%emt 0:00:22]} Bxc1 {[%emt 0:01:30]} 36. Rxc1 {[%emt 0:00:01]} h4 {[%emt 0:00:30]} 37. Qe6 {[%emt 0:00:52]} Qf4 {[%emt 0:00:30]} 38. Rc7 {[%emt 0:01:49]} Qg5 {[%emt 0:05:30]} 39. Qxe5+ {[%emt 0:00:38]} Qf6 {[%emt 0:06:30]} 40. Qxf6+ {[%emt 0:00:30]} Rxf6 {[%emt 0:00:00]} 41. d7 {[%emt 0:02:04]} Rc6 {[%emt 0:03:00]} 42. Rxc6 {[%emt 0:01:30]} bxc6 {[%emt 0:00:30]} 43. e5 {[%emt 0:01:30]} Kg7 {[%emt 0:00:30]} 44. Bxc6 {[%emt 0:00:30]} Rd8 {[%emt 0:00:30]} 45. Ke2 {[%emt 0:07:30]} h3 {[%emt 0:00:00]} 46. Kd3 {[%emt 0:02:59]} h2 {[%emt 0:00:00]} 47. e6 {[%emt 0:00:00]} Kf6 {[%emt 0:00:30]} 48. a4 {[%emt 0:00:40]} Ke7 {[%emt 0:00:30]} 49. a5 {[%emt 0:02:29]} 1-0

[Event "World Junior U20 Open 2018"]
[Site "Gebze"]
[Date "2018.09.07"]
[Round "4.81"]
[White "Kara, Yanki"]
[Black "Rajic, Ivan"]
[Result "1-0"]
[ECO "D78"]
[WhiteElo "2262"]
[BlackElo "2021"]
[Annotator "NA"]
[PlyCount "53"]
[EventDate "2018.09.05"]
[EventType "swiss"]
[EventCountry "TUR"]
[SourceTitle "playchess.com"]
[Source "ChessBase"]
[SourceQuality "1"]
[TimeControl "40/5400+30:1800+30"]

1. Nf3 {[%emt 0:00:30]} Nf6 {[%emt 0:00:30]} 2. g3 {[%emt 0:00:00]} g6 {[%emt 0:00:30]} 3. b3 {[%emt 0:00:00]} Bg7 {[%emt 0:00:30]} 4. Bb2 {[%emt 0:00:30]} O-O {[%emt 0:00:30]} 5. Bg2 {[%emt 0:00:30]} d5 {[%emt 0:00:30]} 6. c4 {[%emt 0:00:00]} c6 {[%emt 0:00:30]} 7. O-O {[%emt 0:00:00]} Nbd7 {[%emt 0:01:30]} 8. d4 {[%emt 0:00:00]} e6 {[%emt 0:09:30]} 9. Nbd2 {[%emt 0:00:00]} b6 {[%emt 0:02:30]} 10. Qc2 {[%emt 0:02:30]} c5 {[%emt 0:02:30]} 11. Rfd1 {[%emt 0:04:30]} Bb7 {[%emt 0:02:30]} 12. Rac1 {[%emt 0:00:30]} Rc8 {[%emt 0:07:30]} 13. Qb1 {[%emt 0:00:30]} Re8 {[%emt 0:03:30]} 14. Qa1 {[%emt 0:02:30]} Ne4 {[%emt 0:09:30]} 15. e3 {[%emt 0:22:30]} Qe7 {[%emt 0:05:30]} 16. Qb1 {[%emt 0:14:30]} Nxd2 {[%emt 0:21:30]} 17. Nxd2 {[%emt 0:03:30]} Nf6 {[%emt 0:03:30]} 18. dxc5 {[%emt 0:01:30]} bxc5 {[%emt 0:01:30]} 19. Qc2 {[%emt 0:01:30]} e5 {[%emt 0:04:30]} 20. cxd5 {[%emt 0:01:30]} Nxd5 {[%emt 0:00:30]} 21. a3 {[%emt 0:01:30]} Nb6 {[%emt 0:02:44]} 22. Bxb7 {[%emt 0:01:30]} Qxb7 {[%emt 0:00:10]} 23. Ne4 {[%emt 0:00:00]} Red8 {[%emt 0:04:15]} 24. Nd6 {[%emt 0:01:00]} Rxd6 {[%emt 0:00:30]} 25. Rxd6 {[%emt 0:00:30]} c4 {[%emt 0:00:00]} 26. Rcd1 {[%emt 0:04:30]} c3 {[%emt 0:00:19]} 27. Rd8+ {[%emt 0:00:00]} 1-0